Workbook

Sheet fiche
A1: DOSSIER TECHNO : | B1: 90155
A2: CLIENT : | B2: AFF
A3: DOSSIER JB : | B3: 90189
A4: DATE DE DEPART : | B4: 2021-09-23
A5: REFERENCE DE LA SERIE | B5: serie 1 | C5: serie 2 | D5: serie 3 | E5: serie 4 | F5: serie 5 | G5: serie 6
A9: Quantité commandée | B9: 125402 | C9: 100250 | D9: 158300 | E9: 125750 | F9: 205750 | G9: 69750
A10: Quantité par paquet | B10: 200 | C10: 100 | D10: 125 | E10: 150 | F10: 200 | G10: 100
A11: Nombre paquets/carton | B11: 10 | C11: 20 | D11: 12 | E11: 15 | F11: 20 | G11: 10

Sheet 32
A6: =fiche!A1 -> DOSSIER TECHNO : | B6: =fiche!B1 -> 90155 | C6: =fiche!A2 -> CLIENT : | D6: =fiche!B2 -> AFF | E6: =fiche!A3 -> DOSSIER JB : | F6: =fiche!B3 -> 90189 | G6: =fiche!A4 -> DATE DE DEPART : | H6: =fiche!B4 -> 2021-09-23 | L6: =A6 -> DOSSIER TECHNO : | M6: 90155 | N6: CLIENT : | O6: AFF | P6: DOSSIER JB : | Q6: 90189 | R6: DATE DE DEPART : | S6: 2021-09-23
A9: REF DE LA SERIE | B9: QUANTITE PAR PAQUETS | C9: NOMBRE DE PAQUETS AU CARTON | D9: QUANTITE PAR CARTON | E9: NOMBRE DE CARTON | F9: QUANTITE | G9: NOMBRE DE PALETTE | H9: QUANTITE TOTAL | L9: =A9 -> REF DE LA SERIE | M9: QUANTITE PAR PAQUETS | N9: NOMBRE DE PAQUETS AU CARTON | O9: QUANTITE PAR CARTON | P9: NOMBRE DE CARTON | Q9: QUANTITE | R9: NOMBRE DE PALETTE | S9: QUANTITE TOTAL
A10: =fiche!B5 -> serie 1 | B10: =fiche!B10 -> 200 | C10: =fiche!B11 -> 10 | D10: =IFERROR(B10*C10,"") -> 2000 | E10: =IFERROR(IF(fiche!B9>32*D10,32,ROUNDDOWN(fiche!B9/D10,0)),"") -> 32 | F10: =IFERROR(E10*D10,"") -> 64000 | G10: =IF(E10<>"",IF(E10<32,INT(1),INT(fiche!$B$9/D10/32)),"") -> 1 | H10: =IFERROR(E10*D10*G10,"") -> 64000 | L10: serie 1 | M10: 200 | N10: 10 | O10: 2000 | P10: 32 | Q10: 64000 | R10: 1 | S10: 64000
B11: =IF(MAX(H9:H10)>=fiche!$B$9,"",B10) -> 200 | C11: =IF(MAX(H10:H10)>=fiche!$B$9,"",C10) -> 10 | D11: =IFERROR(B11*C11,"") -> 2000 | E11: =IFERROR(IF((fiche!$B$9-H10)>32*D11,32,MAX(INT((fiche!$B$9-H10)/D11),1)),"") -> 30 | F11: =IFERROR(IF(fiche!B9-'32'!H10>'32'!D11*'32'!E11,'32'!D11*'32'!E11,fiche!B9-'32'!H10),"") -> 60000 | G11: =IF($F11="","",1) -> 1 | H11: =IF(MAX($H$9:H10)>=fiche!$B$9,"",H10+F11) -> 124000 | I11: =IFERROR(ROUNDUP(F11/E11,-2),"") -> 2000 | J11: =IFERROR(I11/M11,"") -> 10 | M11: =B11 -> 200 | N11: =IFERROR(ROUNDUP(J11,-0.5), "") -> 10 | O11: =IFERROR(M11*N11,"") -> 2000 | P11: =E11 -> 30 | Q11: =IFERROR(P11*O11,"") -> 60000 | R11: =IFERROR(G11,"") -> 1 | S11: =IFERROR(S10+Q11,"") -> 124000
B12: =IF(MAX(H10:H11)>=fiche!$B$9,"",B11) -> 200 | C12: =IF(MAX(H10:H11)>=fiche!$B$9,"",C11) -> 10 | D12: 2000 | E12: =IFERROR(IF((fiche!$B$9-H11)>32*D12,32,MAX(INT((fiche!$B$9-H11)/D12),1)),"") -> 1 | F12: =IFERROR(IF(E12*D12>D12,E12*D12,MAX(fiche!$B$9-H11,100)),"") -> 1402 | G12: =IF($F12="","",1) -> 1 | H12: =IF(MAX($H$9:H11)>=fiche!$B$9,"",H11+F12) -> 125402 | I12: =IFERROR(ROUNDUP(F12,-2),"") -> 1500 | J12: =IFERROR(I12/M12,"") -> 7.5 | M12: =B12 -> 200 | N12: =IFERROR(ROUNDUP(J12,-0.5), "") -> 8 | O12: =IF(ISERROR(N12*M12),"", N12*M12) -> 1600 | P12: =E12 -> 1 | Q12: =IFERROR(P12*O12,"") -> 1600 | R12: =G12 -> 1 | S12: =IFERROR(S11+Q12,"") -> 125600
A14: =fiche!C5 -> serie 2 | B14: =fiche!C10 -> 100 | C14: =fiche!C11 -> 20 | D14: =IFERROR(B14*C14,"") -> 2000 | E14: =IFERROR(IF(fiche!C9>32*D14,32,ROUNDDOWN(fiche!C9/D14,0)),"") -> 32 | F14: =IFERROR(E14*D14,"") -> 64000 | G14: =IF(E14<>"",IF(E14<32,INT(1),INT(fiche!$C$9/D14/32)),"") -> 1 | H14: =IFERROR(E14*D14*G14,"") -> 64000 | L14: =A14 -> serie 2 | M14: 100 | N14: 20 | O14: 2000 | P14: 32 | Q14: 64000 | R14: 1 | S14: 64000
B15: =IF(MAX(H14:H14)>=fiche!$C$9,"",B14) -> 100 | C15: =IF(MAX(H14:H14)>=fiche!$C$9,"",C14) -> 20 | D15: =IFERROR(B15*C15,"") -> 2000 | E15: =IFERROR(IF((fiche!$C$9-H14)>32*D15,32,MAX(INT((fiche!$C$9-H14)/D15),1)),"") -> 18 | F15: =IFERROR(IF(fiche!C9-'32'!H14>'32'!D15*'32'!E15,'32'!D15*'32'!E15,fiche!C9-'32'!H14),"") -> 36000 | G15: =IF($F15="","",1) -> 1 | H15: =IF(MAX($H$14:H14)>=fiche!$C$9,"",H14+F15) -> 100000 | I15: =IFERROR(ROUNDUP(F15/E15,-2),"") -> 2000 | J15: =IFERROR(I15/M15,"") -> 20 | M15: =B15 -> 100 | N15: =IFERROR(ROUNDUP(J15,-0.5), "") -> 20 | O15: =IFERROR(M15*N15,"") -> 2000 | P15: =E15 -> 18 | Q15: =IFERROR(ROUNDUP(F15,-2),"") -> 36000 | R15: =IFERROR(G15,"") -> 1 | S15: =H15 -> 100000
B16: =IF(MAX(H14:H15)>=fiche!$C$9,"",B15) -> 100 | C16: =IF(MAX(H14:H15)>=fiche!$C$9,"",C15) -> 20 | D16: =IFERROR(B16*C16,"") -> 2000 | E16: =IFERROR(IF((fiche!$B$9-H15)>32*D16,32,MAX(INT((fiche!$B$9-H15)/D16),1)),"") -> 12 | F16: =IFERROR(IF(E16*D16>D16,E16*D16,MAX(fiche!$C$9-H15,100)),"") -> 24000 | G16: 1 | H16: =IF(MAX($H$14:H15)>=fiche!$C$9,"",H15+F16) -> 124000 | I16: =IFERROR(ROUNDUP(F16,-2),"") -> 24000 | J16: =IFERROR(I16/M16,"") -> 240 | M16: 100 | N16: =IFERROR(ROUNDUP(J16,-0.5), "") -> 240 | O16: =IF(ISERROR(N16*M16),"", N16*M16) -> 24000 | P16: 12 | Q16: =IFERROR(P16*O16,"") -> 288000 | R16: =G16 -> 1 | S16: =IFERROR(ROUNDUP(H16,-2),"") -> 124000
A18: =fiche!D5 -> serie 3 | B18: =fiche!D10 -> 125 | C18: =fiche!D11 -> 12 | D18: =IFERROR(B18*C18,"") -> 1500 | E18: =IFERROR(IF(fiche!D9>32*D18,32,ROUNDDOWN(fiche!D9/D18,0)),"") -> 32 | F18: =IFERROR(E18*D18,"") -> 48000 | G18: =IF(E18<>"",IF(E18<32,INT(1),INT(fiche!$D$9/D18/32)),"") -> 3 | H18: =IFERROR(E18*D18*G18,"") -> 144000 | L18: =A18 -> serie 3 | M18: 125 | N18: 12 | O18: 1500 | P18: 32 | Q18: 48000 | R18: 3 | S18: 144000
B19: =IF(MAX(H18:H18)>=fiche!$D$9,"",B18) -> 125 | C19: =IF(MAX(H18:H18)>=fiche!$D$9,"",C18) -> 12 | D19: =IFERROR(B19*C19,"") -> 1500 | E19: =IFERROR(IF((fiche!$C$9-H18)>32*D19,32,MAX(INT((fiche!$D$9-H18)/D19),1)),"") -> 9 | F19: =IFERROR(IF(fiche!D9-'32'!H18>'32'!D19*'32'!E19,'32'!D19*'32'!E19,fiche!D9-'32'!H18),"") -> 13500 | G19: =IF($F19="","",1) -> 1 | H19: =IF(MAX($H$18:H18)>=fiche!$D$9,"",H18+F19) -> 157500 | I19: =IFERROR(ROUNDUP(F19/E19,-2),"") -> 1500 | J19: =IFERROR(I19/M19,"") -> 12 | M19: =B19 -> 125 | N19: =IFERROR(ROUNDUP(J19,-0.5), "") -> 12 | O19: =IFERROR(M19*N19,"") -> 1500 | P19: =E19 -> 9 | Q19: =IFERROR(ROUNDUP(F19,-2),"") -> 13500 | R19: =IFERROR(G19,"") -> 1 | S19: =H19 -> 157500
B20: =IF(MAX(H18:H19)>=fiche!$D$9,"",B19) -> 125 | C20: =IF(MAX(H18:H19)>=fiche!$D$9,"",C19) -> 12 | D20: =IFERROR(B20*C20,"") -> 1500 | E20: =IFERROR(IF((fiche!$D$9-H19)>32*D20,32,MAX(INT((fiche!$D$9-H19)/D20),1)),"") -> 1 | F20: =IFERROR(IF(E20*D20>D20,E20*D20,MAX(fiche!$D$9-H19,100)),"") -> 800 | G20: =IF($F20="","",1) -> 1 | H20: =IF(MAX($H$18:H19)>=fiche!$D$9,"",H19+F20) -> 158300 | I20: 800 | J20: =IFERROR(I20/M20,"") -> 6.4 | M20: 125 | N20: =IFERROR(ROUNDUP(J20,-0.5), "") -> 7 | O20: =IF(ISERROR(N20*M20),"", N20*M20) -> 875 | P20: 1 | Q20: =IFERROR(P20*O20,"") -> 875 | R20: =G20 -> 1 | S20: =IFERROR(ROUNDUP(H20,-2),"") -> 158300
A22: =fiche!E5 -> serie 4 | B22: =fiche!E10 -> 150 | C22: =fiche!E11 -> 15 | D22: =IFERROR(B22*C22,"") -> 2250 | E22: =IFERROR(IF(fiche!E9>32*D22,32,ROUNDDOWN(fiche!E9/D22,0)),"") -> 32 | F22: =IFERROR(E22*D22,"") -> 72000 | G22: =IF(E22<>"",IF(E22<32,INT(1),INT(fiche!$E$9/D22/32)),"") -> 1 | H22: =IFERROR(E22*D22*G22,"") -> 72000 | L22: =A22 -> serie 4 | M22: 150 | N22: 15 | O22: 2250 | P22: 32 | Q22: 72000 | R22: 1 | S22: 72000
B23: =IF(MAX(H21:H22)>=fiche!$E$9,"",B22) -> 150 | C23: =IF(MAX(H21:H22)>=fiche!$E$9,"",C22) -> 15 | D23: =IFERROR(B23*C23,"") -> 2250 | E23: =IFERROR(IF((fiche!$E$9-H22)>32*D23,32,MAX(INT((fiche!$E$9-H22)/D23),1)),"") -> 23 | F23: =IFERROR(IF(fiche!E9-'32'!H22>'32'!D23*'32'!E23,'32'!D23*'32'!E23,fiche!E9-'32'!H22),"") -> 51750 | G23: =IF($F23="","",1) -> 1 | H23: =IF(MAX($H$22:H22)>=fiche!$E$9,"",H22+F23) -> 123750 | I23: =IFERROR(ROUNDUP(F23/E23,-2),"") -> 2300 | J23: =IFERROR(I23/M23,"") -> 15.33333333 | M23: =B23 -> 150 | N23: =IFERROR(ROUNDUP(J23,-0.5), "") -> 16 | O23: =IFERROR(M23*N23,"") -> 2400 | P23: =E23 -> 23 | Q23: =IFERROR(ROUNDUP(F23,-2),"") -> 51800 | R23: =IFERROR(G23,"") -> 1 | S23: =H23 -> 123750
B24: =IF(MAX(H22:H23)>=fiche!$E$9,"",B23) -> 150 | C24: =IF(MAX(H22:H23)>=fiche!$E$9,"",C23) -> 15 | D24: 2250 | E24: =IFERROR(IF((fiche!$E$9-H23)>32*D24,32,MAX(INT((fiche!$E$9-H23)/D24),1)),"") -> 1 | F24: =IFERROR(IF(E24*D24>D24,E24*D24,MAX(fiche!$E$9-H23,100)),"") -> 2000 | G24: =IF($F24="","",1) -> 1 | H24: =IF(MAX($H$22:H23)>=fiche!$E$9,"",H23+F24) -> 125750 | I24: 2000 | J24: =IFERROR(I24/M24,"") -> 13.33333333 | M24: 150 | N24: =IFERROR(ROUNDUP(J24,-0.5), "") -> 14 | O24: =IF(ISERROR(N24*M24),"", N24*M24) -> 2100 | P24: 1 | Q24: =IFERROR(P24*O24,"") -> 2100 | R24: =G24 -> 1 | S24: =IFERROR(ROUNDUP(H24,-2),"") -> 125800
A26: =fiche!F5 -> serie 5 | B26: =fiche!F10 -> 200 | C26: =fiche!F11 -> 20 | D26: =IFERROR(B26*C26,"") -> 4000 | E26: =IFERROR(IF(fiche!F9>32*D26,32,ROUNDDOWN(fiche!F9/D26,0)),"") -> 32 | F26: =IFERROR(E26*D26,"") -> 128000 | G26: =IF(E26<>"",IF(E26<32,INT(1),INT(fiche!$F$9/D26/32)),"") -> 1 | H26: =IFERROR(E26*D26*G26,"") -> 128000 | I26: =IFERROR(ROUNDUP(F26/E26,-2),"") -> 4000 | J26: =IFERROR(I26/M26,"") -> 20 | L26: =A26 -> serie 5 | M26: 200 | N26: =C26 -> 20 | O26: =D26 -> 4000 | P26: 32 | Q26: =F26 -> 128000 | R26: 1 | S26: 128000
B27: =IF(MAX(H25:H26)>=fiche!$F$9,"",B26) -> 200 | C27: =IF(MAX(H25:H26)>=fiche!$F$9,"",C26) -> 20 | D27: =IFERROR(B27*C27,"") -> 4000 | E27: =IFERROR(IF((fiche!$F$9-H26)>32*D27,32,MAX(INT((fiche!$F$9-H26)/D27),1)),"") -> 19 | F27: =IFERROR(IF(fiche!F9-'32'!H26>'32'!D27*'32'!E27,'32'!D27*'32'!E27,fiche!F9-'32'!H26),"") -> 76000 | G27: =IF($F27="","",1) -> 1 | H27: =IF(MAX($H$26:H26)>=fiche!$F$9,"",H26+F27) -> 204000 | I27: 76000 | J27: =IFERROR(I27/M27,"") -> 380 | M27: 200 | N27: =IFERROR(ROUNDUP(J27,-0.5), "") -> 380 | O27: =IFERROR(M27*N27,"") -> 76000 | P27: 19 | Q27: =IFERROR(ROUNDUP(F27,-2),"") -> 76000 | R27: =IFERROR(G27,"") -> 1 | S27: 204000
B28: =IF(MAX(H26:H27)>=fiche!$F$9,"",B27) -> 200 | C28: =IF(MAX(H26:H27)>=fiche!$F$9,"",C27) -> 20 | D28: 4000 | E28: =IFERROR(IF((fiche!$F$9-H27)>32*D28,32,MAX(INT((fiche!$F$9-H27)/D28),1)),"") -> 1 | F28: =IFERROR(IF(E28*D28>D28,E28*D28,MAX(fiche!$F$9-H27,100)),"") -> 1750 | G28: =IF($F28="","",1) -> 1 | H28: =IF(MAX($H$26:H27)>=fiche!$F$9,"",H27+F28) -> 205750 | I28: 1800 | J28: =IFERROR(I28/M28,"") -> 9 | M28: 200 | N28: =IFERROR(ROUNDUP(J28,-0.5), "") -> 9 | O28: =IF(ISERROR(N28*M28),"", N28*M28) -> 1800 | P28: 1 | Q28: =IFERROR(P28*O28,"") -> 1800 | R28: 1 | S28: =IFERROR(ROUNDUP(H28,-2),"") -> 205800
A30: =fiche!G5 -> serie 6 | B30: =fiche!G10 -> 100 | C30: =fiche!G11 -> 10 | D30: =IFERROR(B30*C30,"") -> 1000 | E30: =IFERROR(IF((fiche!$G$9-H29)>32*D30,32,MAX(INT((fiche!$G$9-H29)/D30),1)),"") -> 32 | F30: =IFERROR(E30*D30,"") -> 32000 | G30: =IF(E30<>"",IF(E30<32,INT(1),INT(fiche!$G$9/D30/32)),"") -> 2 | H30: =IFERROR(E30*D30*G30,"") -> 64000 | L30: =A30 -> serie 6 | M30: =B30 -> 100 | N30: =C30 -> 10 | O30: =D30 -> 1000 | P30: =E30 -> 32 | Q30: =IFERROR(ROUNDUP(F30,-2),"") -> 32000 | R30: =IFERROR(G30,"") -> 2 | S30: =H30 -> 64000
B31: =IF(MAX(H29:H30)>=fiche!$G$9,"",B30) -> 100 | C31: =IF(MAX(H29:H30)>=fiche!$G$9,"",C30) -> 10 | D31: 1000 | E31: =IFERROR(IF((fiche!$G$9-H30)>32*D31,32,MAX(INT((fiche!$G$9-H30)/D31),1)),"") -> 5 | F31: =IFERROR(IF(fiche!G9-'32'!H30>'32'!D31*'32'!E31,'32'!D31*'32'!E31,fiche!G9-'32'!H30),"") -> 5000 | G31: =IF($F31="","",1) -> 1 | H31: =IF(MAX($H$30:H30)>=fiche!$G$9,"",H30+F31) -> 69000 | I31: =IFERROR(ROUNDUP(F31/E31,-2),"") -> 1000 | J31: =IFERROR(I31/M31,"") -> 10 | M31: 100 | N31: =IFERROR(ROUNDUP(J31,-0.5), "") -> 10 | O31: =IF(ISERROR(N31*M31),"", N31*M31) -> 1000 | P31: 5 | Q31: =IFERROR(P31*O31,"") -> 5000 | R31: =G31 -> 1 | S31: =IFERROR(ROUNDUP(H31,-2),"") -> 69000
B32: =IF(MAX(H30:H31)>=fiche!$G$9,"",B31) -> 100 | C32: =IF(MAX(H30:H31)>=fiche!$G$9,"",C31) -> 10 | D32: 1000 | E32: =IFERROR(IF((fiche!$G$9-H31)>32*D32,32,MAX(INT((fiche!$G$9-H31)/D32),1)),"") -> 1 | F32: =IFERROR(IF(E32*D32>D32,E32*D32,MAX(fiche!$G$9-H31,100)),"") -> 750 | G32: =IF($F32="","",1) -> 1 | H32: =IF(MAX($H$30:H31)>=fiche!$G$9,"",H31+F32) -> 69750 | I32: =IFERROR(ROUNDUP(F32,-2),"") -> 800 | J32: 8 | M32: 100 | N32: =IFERROR(ROUNDUP(J32,-0.5), "") -> 8 | O32: =IF(ISERROR(N32*M32),"", N32*M32) -> 800 | P32: 1 | Q32: =IFERROR(P32*O32,"") -> 800 | R32: 1 | S32: =H32 -> 69750

Sheet Feuil1
